bitfinex/quotes_BTCUSD_20260315
["timestamp","ask_amount","ask_price","bid_price","bid_amount"]
[1773544632572,0.07012771,71409.0,71395.0,0.07163223]
[1773544634926,0.07787464,71408.0,71395.0,0.0016]
[1773544636909,0.14789578,71407.0,71395.0,0.0016]
[1773544637530,0.07787464,71406.0,71389.0,0.0002]
[1773544637700,0.07927464,71406.0,71389.0,0.0002]
[1773544637901,0.07927464,71406.0,71390.0,0.0014]
[1773544638910,0.07002114,71408.0,71393.0,0.08016392]
[1773544639132,0.07012771,71409.0,71393.0,0.08016392]
[1773544641673,0.07012771,71409.0,71394.0,0.14829482]
[1773544643176,0.07034772,71409.0,71394.0,0.14829482]
[1773544644141,0.07034683,71409.0,71395.0,0.07826093]
[1773544644351,0.00032756,71409.0,71395.0,0.07826093]
[1773544644707,0.0700651,71424.0,71402.0,0.07826093]
[1773544644927,0.07058621,71421.0,71402.0,0.16610333]
[1773544645081,0.07058621,71421.0,71403.0,0.07826093]
[1773544645283,0.00057862,71421.0,71405.0,0.07826093]
[1773544645487,0.07058622,71421.0,71405.0,0.07826093]
[1773544645800,0.07058622,71421.0,71407.0,0.07826093]
[1773544647869,0.07058622,71421.0,71408.0,0.07002016]
[1773544648069,0.07058622,71421.0,71408.0,0.07142016]
[1773544648587,0.07058622,71421.0,71408.0,0.14968109]
[1773544648973,0.07058622,71421.0,71409.0,0.07826093]
[1773544649173,0.00057862,71421.0,71409.0,0.07826093]
[1773544649816,0.0705867,71421.0,71409.0,0.07826093]
[1773544650217,0.0705867,71421.0,71410.0,0.0700182]
[1773544650425,0.0705867,71421.0,71411.0,0.07826093]
[1773544653163,0.0705867,71421.0,71412.0,0.07001624]
[1773544654741,0.00057862,71421.0,71412.0,0.07001624]
[1773544655104,0.00057862,71421.0,71412.0,0.14827717]
[1773544655250,0.0003956,71440.0,71413.0,0.202175]
[1773544655453,0.00045747,71437.0,71416.0,0.07826093]
[1773544655676,0.07044929,71437.0,71418.0,0.07826093]
[1773544656444,0.0704497,71437.0,71418.0,0.07826093]
[1773544657246,0.00045747,71437.0,71420.0,0.07826093]
[1773544657434,0.07044956,71437.0,71420.0,0.07826093]
[1773544658058,0.07034956,71437.0,71420.0,0.07826093]
[1773544658258,0.00011001,71429.0,71420.0,0.07826093]
[1773544658458,5.501e-05,71429.0,71420.0,0.07826093]
[1773544659289,5.501e-05,71429.0,71421.0,0.07000742]
[1773544659458,5.501e-05,71429.0,71422.0,0.07826093]
[1773544659656,5.501e-05,71429.0,71424.0,0.07826093]
[1773544660372,0.06999305,71436.0,71423.0,0.0014]
[1773544660575,0.06999305,71436.0,71420.0,0.07000742]
[1773544660576,0.07718091,71435.0,71407.0,0.07002024]
[1773544660774,0.07718091,71435.0,71408.0,0.0014]
[1773544660978,0.07718091,71435.0,71409.0,0.0014]
[1773544661183,0.07718091,71435.0,71408.0,0.07826093]
[1773544661395,0.07718091,71433.0,71409.0,0.07141918]
[1773544661594,0.07718091,71431.0,71409.0,0.07141918]
[1773544662387,0.07718091,71431.0,71409.0,0.07001918]
[1773544663271,0.0014,71430.0,71413.0,0.07826093]
[1773544663671,0.0014,71429.0,71415.0,0.07826093]
[1773544663868,0.0014,71428.0,71415.0,0.07826093]
[1773544664088,0.0014,71427.0,71415.0,0.07826093]
[1773544664289,0.06999289,71436.0,71415.0,0.07826093]
[1773544664495,0.0014,71435.0,71415.0,0.07826093]
[1773544665905,0.07139437,71435.0,71417.0,0.07826093]
[1773544666122,0.00022001,71431.0,71417.0,0.07826093]
[1773544666504,0.00034961,71431.0,71417.0,0.07826093]
[1773544667103,0.0014,71430.0,71417.0,0.07826093]
[1773544667382,0.0015296,71430.0,71417.0,0.07826093]
[1773544667787,0.0015296,71430.0,71416.0,0.07001232]
[1773544667963,0.07871051,71430.0,71413.0,0.07001428]
[1773544668161,0.0014,71429.0,71413.0,0.07001428]
[1773544668362,0.0015296,71429.0,71414.0,0.07826093]
[1773544668576,0.0014,71428.0,71414.0,0.07826093]
[1773544669297,0.0014,71428.0,71409.0,0.0702182]
[1773544669298,0.07718091,71427.0,71409.0,0.0702182]
[1773544669835,0.07718091,71427.0,71409.0,0.14332049]
[1773544670237,0.14718261,71427.0,71409.0,0.14332049]
[1773544670471,0.14731221,71427.0,71409.0,0.14332049]
[1773544673850,0.14731221,71427.0,71409.0,0.0702182]
[1773544674074,0.0014,71426.0,71411.0,0.07307666]
[1773544674483,0.0015296,71426.0,71412.0,0.07001624]
[1773544675228,0.07153241,71426.0,71412.0,0.07001624]
[1773544676764,0.14452425,71426.0,71412.0,0.07001624]
[1773544678058,0.14452425,71426.0,71404.0,0.07002334]
[1773544678059,0.07299184,71421.0,71404.0,0.07002334]
[1773544678414,0.0014,71420.0,71404.0,0.07002334]
[1773544678617,0.13046502,71419.0,71404.0,0.07002334]
[1773544679019,0.06025462,71418.0,71404.0,0.07002334]
[1773544680574,0.06007679,71418.0,71404.0,0.07002334]
[1773544680722,0.06007679,71418.0,71401.0,0.00055004]
[1773544680723,0.06147462,71413.0,71401.0,0.00055004]
[1773544680927,0.06129678,71413.0,71401.0,0.07057692]
[1773544681122,0.06269678,71412.0,71401.0,0.07057686]
[1773544681359,0.06269678,71412.0,71401.0,0.07057694]
[1773544681682,0.06269678,71412.0,71401.0,0.00055004]
[1773544681888,0.06269678,71412.0,71401.0,0.07093554]
[1773544682800,0.07001722,71411.0,71401.0,0.07002689]
[1773544683602,0.13091504,71411.0,71400.0,0.07002703]
[1773544683764,0.05880525,71410.0,71400.0,0.07013458]
[1773544683961,0.05880525,71410.0,71401.0,0.0002]
[1773544684163,0.13091504,71411.0,71401.0,0.0002]
[1773544684366,0.0014,71410.0,71401.0,0.0002]
[1773544685098,0.07001918,71409.0,71402.0,0.07002604]
[1773544686103,0.07001918,71409.0,71401.0,0.0002]
[1773544686299,0.0617773,71408.0,71396.0,0.07003136]
[1773544686478,0.06188485,71408.0,71396.0,0.07003136]
[1773544688078,0.07002114,71407.0,71396.0,0.07003136]
[1773544690513,0.06103772,71405.0,71386.0,0.0003208]
[1773544690713,0.05880525,71406.0,71389.0,0.07023855]
[1773544690714,0.06103772,71406.0,71389.0,0.07023855]
[1773544690940,0.06103772,71406.0,71389.0,0.0002]
[1773544691378,0.05880525,71400.0,71389.0,0.0002]
[1773544691688,0.0014,71399.0,71389.0,0.07023863]
[1773544691887,0.06067509,71398.0,71386.0,0.0003208]
[1773544692097,0.06067509,71398.0,71385.0,0.0002]
[1773544692298,0.06067509,71390.0,71378.0,0.0002]
[1773544692585,0.0014,71389.0,71378.0,0.07024925]
[1773544694582,0.07003978,71388.0,71378.0,0.07024925]
[1773544694899,0.06074443,71387.0,71372.0,0.0004004]
[1773544695041,0.07003978,71388.0,71372.0,0.0004004]
[1773544695042,0.05880525,71382.0,71372.0,0.0004004]
[1773544695238,0.0014,71381.0,71372.0,0.0004004]
[1773544696191,0.00150749,71381.0,71372.0,0.0004004]
[1773544697216,0.00150749,71381.0,71369.0,0.05089124]
[1773544697217,0.07004763,71380.0,71369.0,0.05089124]
[1773544697392,0.06038685,71379.0,71365.0,0.07006199]
[1773544698276,0.06038685,71379.0,71366.0,0.0700612]
[1773544698480,0.06038685,71379.0,71365.0,0.07006199]
[1773544699538,0.06079916,71377.0,71359.0,0.07006824]
[1773544702024,0.07005155,71376.0,71359.0,0.07006824]
[1773544702353,0.07005155,71376.0,71340.0,0.05890229]
[1773544702354,0.02939995,71373.0,71340.0,0.07015439]
[1773544702528,0.05890229,71370.0,71342.0,0.07015439]
[1773544702727,0.08812531,71370.0,71342.0,0.07015439]
[1773544702927,0.02922302,71369.0,71342.0,0.07015439]
[1773544703133,0.05890229,71360.0,71342.0,0.07015439]
[1773544703427,0.0014,71359.0,71342.0,0.07015439]
[1773544704064,0.07006922,71358.0,71342.0,0.07015439]
[1773544704438,0.07006922,71358.0,71349.0,0.0002]
[1773544704638,0.07017665,71358.0,71349.0,0.0002]
[1773544705933,0.07017665,71358.0,71349.0,0.07035439]
[1773544706383,0.0014,71357.0,71349.0,0.07035439]
[1773544708265,0.07007119,71356.0,71349.0,0.07035439]
[1773544709051,0.07007119,71356.0,71349.0,0.07135439]
[1773544709246,0.07007119,71356.0,71349.0,0.07235439]
[1773544709667,0.07007119,71356.0,71349.0,0.07035439]
[1773544710259,0.07007315,71354.0,71349.0,0.07035439]
[1773544713023,0.0014,71353.0,71349.0,0.07035439]
[1773544715469,0.00010743,71358.0,71349.0,0.07035439]
[1773544715671,0.07005842,71371.0,71351.0,0.07015439]
[1773544715871,0.0014,71370.0,71351.0,0.07015439]
[1773544716074,0.06030229,71370.0,71351.0,0.07015439]
[1773544718968,0.07005842,71369.0,71352.0,0.07007512]
[1773544719162,0.07005842,71369.0,71353.0,0.07015439]
[1773544720983,0.07005842,71369.0,71354.0,0.07015439]
[1773544721204,0.0014,71368.0,71354.0,0.07015439]
[1773544722040,0.0014,71367.0,71354.0,0.07015439]
[1773544722529,0.07005842,71369.0,71354.0,0.07015439]
[1773544722777,0.05890229,71370.0,71354.0,0.07015439]
[1773544722972,0.0014,71368.0,71355.0,0.07007217]
[1773544723115,0.0014,71367.0,71356.0,0.07015439]
[1773544723318,0.07005663,71371.0,71356.0,0.07015439]
[1773544723523,0.0014,71366.0,71356.0,0.07015439]
[1773544724953,0.0014,71366.0,71357.0,0.07007021]
[1773544725271,0.0014,71366.0,71358.0,0.07015439]
[1773544726956,0.00022001,71370.0,71359.0,0.07006824]
[1773544727112,0.05890229,71380.0,71359.0,0.07006824]
[1773544727113,0.07004407,71384.0,71361.0,0.07015439]
[1773544727445,0.0014,71380.0,71361.0,0.07015439]
[1773544728106,0.0014,71380.0,71363.0,0.07015439]
[1773544728260,0.0014,71380.0,71365.0,0.07015439]
[1773544728461,0.0014,71380.0,71367.0,0.07015439]
[1773544728663,0.06030229,71380.0,71368.0,0.13888503]
[1773544728899,0.0014,71380.0,71369.0,0.13888503]
[1773544729088,0.07004861,71379.0,71370.0,0.13888503]
[1773544729381,0.07004861,71379.0,71371.0,0.13888503]
[1773544729586,0.07004861,71379.0,71372.0,0.13853473]
[1773544729765,0.07004861,71379.0,71367.0,0.07015439]
[1773544737903,0.07004861,71379.0,71367.0,0.07006013]
[1773544738089,0.07004861,71379.0,71368.0,0.07027825]
[1773544739848,0.07004861,71379.0,71358.0,0.07006917]
[1773544740045,0.07004861,71379.0,71360.0,0.07027825]
[1773544740621,0.07026862,71379.0,71360.0,0.07027825]
[1773544741620,0.07026862,71379.0,71363.0,0.07027825]
[1773544741821,0.0014,71378.0,71364.0,0.20908323]
[1773544742018,0.0014,71378.0,71365.0,0.13880498]
[1773544742344,0.0014,71378.0,71366.0,0.13880498]
[1773544742551,0.0014,71378.0,71367.0,0.13880498]
[1773544742771,0.0014,71378.0,71368.0,0.13880498]
[1773544742951,0.0014,71378.0,71364.0,0.07027825]
[1773544743148,0.0014,71378.0,71365.0,0.13882762]
[1773544743367,0.0014,71378.0,71366.0,0.13882762]
[1773544743585,0.07005057,71377.0,71367.0,0.13882762]
[1773544743732,0.07005057,71377.0,71364.0,0.07027825]
[1773544743733,0.07005057,71377.0,71368.0,0.13882762]
[1773544744091,0.07005057,71377.0,71369.0,0.13882762]
[1773544744219,0.07005057,71377.0,71370.0,0.13882762]
[1773544744423,0.07005057,71377.0,71371.0,0.13882762]
[1773544744666,0.07005057,71377.0,71372.0,0.13882762]
[1773544744867,0.07005057,71377.0,71373.0,0.13882762]
[1773544745050,0.07005057,71377.0,71374.0,0.13882762]
[1773544745258,0.07005057,71377.0,71364.0,0.07027825]
[1773544745437,0.07005057,71377.0,71365.0,0.20925461]
[1773544745642,0.07005057,71377.0,71366.0,0.13897636]
[1773544745845,0.07005057,71377.0,71367.0,0.13897636]
[1773544746049,0.07005057,71377.0,71368.0,0.13897636]
[1773544746245,0.07005057,71377.0,71369.0,0.13897636]
[1773544746468,0.07005057,71377.0,71370.0,0.13897636]
[1773544746668,0.07105057,71377.0,71371.0,0.13897636]
[1773544747001,0.07005057,71377.0,71372.0,0.13897636]
[1773544747290,0.07005057,71377.0,71373.0,0.13897636]
[1773544747438,0.07005057,71377.0,71374.0,0.13897636]
[1773544747644,0.07005057,71377.0,71365.0,0.07027825]
[1773544759554,0.07005057,71377.0,71366.0,0.13930553]
[1773544759757,0.07005057,71377.0,71367.0,0.13930553]
[1773544759972,0.07005057,71377.0,71368.0,0.13930553]
[1773544760130,0.07005057,71377.0,71369.0,0.13930553]
[1773544760334,0.07005057,71377.0,71370.0,0.13930553]
[1773544760551,0.07005057,71377.0,71371.0,0.13930553]
[1773544760757,0.07005057,71377.0,71372.0,0.13930553]
[1773544760975,0.07005057,71377.0,71363.0,0.16610333]
[1773544760976,0.07005057,71377.0,71373.0,0.13930553]
[1773544761177,0.07005057,71377.0,71374.0,0.13930553]
[1773544761351,0.07005057,71377.0,71363.0,0.07006431]
[1773544761556,0.07005057,71377.0,71363.0,0.14145727]
[1773544761763,0.07005057,71377.0,71364.0,0.07139296]
[1773544762166,0.07005057,71377.0,71364.0,0.18284192]
[1773544762167,0.07105057,71377.0,71364.0,0.18284192]
[1773544762366,0.07105057,71377.0,71365.0,0.07139296]
[1773544762562,0.07005057,71377.0,71365.0,0.07139296]
[1773544766891,0.07005057,71377.0,71365.0,0.07159296]
[1773544767309,0.07027058,71377.0,71365.0,0.07159296]
[1773544769343,0.07027058,71377.0,71365.0,0.11164896]
[1773544769549,0.07027058,71377.0,71366.0,0.07139296]
[1773544771443,0.07027058,71377.0,71367.0,0.11144896]
[1773544772172,0.0014,71376.0,71368.0,0.07139296]
[1773544773361,0.0014,71376.0,71369.0,0.13936189]
[1773544773694,0.07005253,71375.0,71368.0,0.07139296]
[1773544774999,0.0014,71374.0,71368.0,0.07139296]
[1773544776088,0.0700545,71373.0,71364.0,0.13149689]
[1773544776288,0.0700545,71373.0,71365.0,0.07139296]
[1773544778492,0.0700545,71373.0,71363.0,0.07006431]
[1773544779988,0.0700545,71373.0,71362.0,0.07026461]
[1773544783482,0.05889565,71372.0,71358.0,0.0002]
[1773544783683,0.06789141,71371.0,71358.0,0.0002]
[1773544784222,0.05889565,71372.0,71358.0,0.0002]
[1773544784409,0.0014,71371.0,71358.0,0.0002]
[1773544784582,0.07005744,71370.0,71362.0,0.0002]
[1773544784776,0.07145744,71370.0,71362.0,0.0002]
[1773544785158,0.0704613,71394.0,71364.0,0.913533]
[1773544785277,0.0704613,71394.0,71368.0,1.706466]
[1773544785278,0.0014,71391.0,71368.0,1.706466]
[1773544785621,0.07003603,71392.0,71373.0,0.07139296]
[1773544785827,0.0014,71390.0,71373.0,0.07139296]
[1773544786331,0.0014,71390.0,71372.0,0.112924]
[1773544786332,0.0014,71390.0,71374.0,0.13921933]
[1773544786478,0.0700388,71389.0,71377.0,0.07005057]
[1773544786688,0.0700388,71389.0,71379.0,0.07139296]
[1773544786886,0.0700388,71389.0,71381.0,0.07139296]
[1773544787087,0.0700388,71389.0,71383.0,0.07139296]
[1773544787335,0.0700388,71389.0,71385.0,0.07139296]
[1773544787517,0.0700388,71389.0,71386.0,0.13921933]
[1773544787715,0.0700388,71389.0,71387.0,0.13921933]
[1773544787891,0.0700388,71389.0,71378.0,0.07139296]
[1773544788087,0.0014,71388.0,71378.0,0.07139296]
[1773544788735,0.07004076,71387.0,71378.0,0.14144215]
[1773544790141,0.0700388,71389.0,71378.0,0.14144215]
[1773544790321,0.0014,71386.0,71378.0,0.14144215]
[1773544791061,0.07004272,71385.0,71373.0,0.07005418]
[1773544791262,0.07004272,71385.0,71374.0,0.07315145]
[1773544792012,0.07004272,71385.0,71373.0,0.07005418]
[1773544792865,0.07004272,71385.0,71378.0,0.0002]
[1773544794269,0.07004272,71385.0,71370.0,0.0002]
[1773544794270,0.0686838,71384.0,71370.0,0.0002]
[1773544794565,0.05889565,71380.0,71370.0,0.0002]
[1773544794749,0.0014,71379.0,71370.0,0.0002]
[1773544795344,0.07004959,71378.0,71370.0,0.0002]
[1773544795894,0.07004959,71378.0,71368.0,0.07016686]
[1773544799403,0.07004959,71378.0,71366.0,0.06958393]
[1773544800616,0.07004959,71378.0,71368.0,0.0002]
[1773544800997,0.0014,71377.0,71368.0,0.0002]
[1773544801400,0.0014,71377.0,71369.0,0.06958393]
[1773544801799,0.07145082,71377.0,71369.0,0.139642]
[1773544802119,0.07145082,71377.0,71368.0,0.07025938]
[1773544803132,0.0014,71376.0,71368.0,0.07025938]
[1773544803488,0.0014,71376.0,71369.0,0.13907784]
[1773544803836,0.0014,71376.0,71370.0,0.13907784]
[1773544804133,0.0014,71376.0,71371.0,0.13907784]
[1773544804354,0.0014,71376.0,71372.0,0.13907784]
[1773544804546,0.0014,71376.0,71373.0,0.13907784]
[1773544804695,0.0014,71376.0,71374.0,0.13907784]
[1773544804896,0.0014,71376.0,71375.0,0.13907784]
[1773544806432,0.0014,71376.0,71375.0,0.06456344]
[1773544807296,0.0014,71376.0,71375.0,0.06476344]
[1773544811979,0.07145155,71376.0,71375.0,0.06476344]
[1773544812966,0.07145155,71376.0,71368.0,0.0002]
[1773544824761,0.07167156,71376.0,71368.0,0.0002]
[1773544829242,0.07025422,71394.0,71384.0,0.07336391]
[1773544829444,0.0014,71393.0,71385.0,0.13921437]
[1773544829748,0.0014,71393.0,71386.0,0.13921437]
[1773544829941,0.0014,71393.0,71387.0,0.13921437]
[1773544830180,0.0014,71392.0,71388.0,0.13921437]
[1773544830387,0.0014,71392.0,71389.0,0.13921437]
[1773544830703,0.0014,71391.0,71390.0,0.13921437]
[1773544831266,0.0014,71391.0,71378.0,0.07004864]
[1773544831469,0.12892395,71390.0,71376.0,0.07005153]
[1773544831718,0.12892395,71390.0,71372.0,0.1191513]
[1773544831719,0.06938918,71389.0,71372.0,0.18920655]
[1773544832043,0.06938918,71389.0,71372.0,0.07005525]
[1773544833406,0.07003978,71388.0,71371.0,0.07005565]
[1773544833592,0.0014,71387.0,71372.0,0.07336391]
[1773544835985,0.07004174,71386.0,71372.0,0.0700545]
[1773544836193,0.13943092,71386.0,71372.0,0.0700545]
[1773544838135,0.13943092,71386.0,71370.0,0.07021019]
[1773544838349,0.07004174,71386.0,71370.0,0.1435741]
[1773544840918,0.07004174,71386.0,71370.0,0.0001534]
[1773544840919,0.05888613,71380.0,71370.0,0.0001534]
[1773544841121,0.0014,71379.0,71370.0,0.0001534]
[1773544841413,0.0014,71378.0,71370.0,0.0001534]
[1773544841616,0.07026175,71386.0,71370.0,0.0001534]
[1773544841617,0.0014,71377.0,71370.0,0.0001534]
[1773544842216,0.0014,71377.0,71370.0,0.07021056]
[1773544847436,0.0014,71377.0,71370.0,0.07041056]
[1773544851085,0.07145074,71377.0,71370.0,0.07041056]
[1773544854196,0.0014,71377.0,71370.0,0.07041056]
[1773544856986,0.07145065,71377.0,71370.0,0.07041056]
[1773544857381,0.0014,71377.0,71370.0,0.07041056]
[1773544860685,0.0014,71377.0,71368.0,0.05009132]
[1773544860904,0.00148032,71377.0,71368.0,0.05009132]
[1773544862125,0.00148032,71377.0,71369.0,0.07005744]
[1773544864638,0.00148032,71377.0,71369.0,0.07025744]
[1773544865747,0.00039434,71377.0,71369.0,0.07025744]
[1773544867835,0.07044523,71377.0,71369.0,0.07025744]
[1773544868436,0.07044497,71377.0,71369.0,0.07025744]
[1773544870166,0.00039434,71377.0,71369.0,0.07025744]
[1773544870483,0.0014,71376.0,71370.0,0.06467234]
[1773544871135,0.00022001,71390.0,71370.0,0.06467234]
[1773544871251,0.00022001,71397.0,71384.0,0.11140376]
[1773544871454,0.0014,71397.0,71391.0,0.06467234]
[1773544871693,0.0014,71397.0,71396.0,0.11140376]
[1773544871894,0.07002602,71403.0,71396.0,0.25060552]
[1773544872204,0.0014,71397.0,71394.0,0.17586191]
[1773544872515,0.0014,71397.0,71395.0,0.13898288]
[1773544872704,0.0014,71397.0,71396.0,0.13898288]
[1773544873988,0.07002602,71403.0,71396.0,0.13898288]
[1773544874191,0.0014,71402.0,71397.0,0.13898288]
[1773544874520,0.0014,71402.0,71398.0,0.13898288]
[1773544874814,0.0014,71402.0,71394.0,8.037e-05]
[1773544874979,0.06668937,71401.0,71389.0,0.0001426]
[1773544875174,0.0667969,71401.0,71389.0,0.0001426]
[1773544875965,0.07002801,71400.0,71389.0,0.0001426]
[1773544877212,0.12891414,71400.0,71389.0,0.0001426]
[1773544878847,0.12891414,71400.0,71380.0,0.0001676]
[1773544878848,0.06668937,71393.0,71380.0,0.0001676]
[1773544879008,0.05888613,71390.0,71380.0,0.0001676]
[1773544879206,0.0014,71389.0,71380.0,0.0001676]
[1773544879411,0.06808937,71389.0,71384.0,0.00035013]
[1773544880246,0.07003978,71388.0,71384.0,0.00035013]
[1773544881220,0.07003978,71388.0,71384.0,0.06502247]
[1773544881563,0.0014,71387.0,71384.0,0.00035013]
[1773544882328,0.07004174,71386.0,71384.0,0.00035013]
[1773544883721,0.07104174,71386.0,71384.0,0.00035013]
[1773544885764,0.07004174,71386.0,71384.0,0.00035013]
[1773544886075,0.07104174,71386.0,71384.0,0.00035013]
[1773544886291,0.07004174,71386.0,71384.0,0.00035013]
[1773544886721,0.07104174,71386.0,71384.0,0.00035013]
[1773544886890,0.07004174,71386.0,71384.0,0.00035013]
[1773544887431,0.07104174,71386.0,71384.0,0.00035013]
[1773544887997,0.07004174,71386.0,71374.0,0.06728496]
[1773544888196,0.07004174,71386.0,71384.0,0.0002]
[1773544888822,0.07004174,71386.0,71376.0,0.0002]
[1773544888985,0.07004174,71386.0,71377.0,0.13894065]
[1773544889184,0.07004174,71386.0,71378.0,0.13894065]
[1773544889425,0.07004174,71386.0,71379.0,0.13894065]
[1773544889737,0.07104174,71386.0,71380.0,0.13894065]
[1773544889937,0.07104174,71386.0,71381.0,0.13894065]
[1773544890100,0.07004174,71386.0,71382.0,0.13894065]
[1773544890300,0.07004174,71386.0,71383.0,0.13894065]
[1773544890502,0.07004174,71386.0,71384.0,0.13894065]
[1773544890722,0.07004174,71386.0,71376.0,0.07025146]
[1773544890894,0.07004174,71386.0,71377.0,0.13895655]
[1773544891253,0.07004174,71386.0,71378.0,0.13895655]
[1773544891438,0.07004174,71386.0,71379.0,0.13895655]
[1773544891739,0.07104174,71386.0,71380.0,0.13895655]
[1773544891945,0.07104174,71386.0,71381.0,0.13895655]
[1773544892150,0.07104174,71386.0,71382.0,0.13895655]
[1773544892371,0.07104174,71386.0,71383.0,0.13895655]
[1773544892567,0.07104174,71386.0,71384.0,0.13895655]
[1773544892776,0.07104174,71386.0,71376.0,0.07025144]
[1773544892955,0.07104174,71386.0,71377.0,0.13898026]
[1773544893164,0.07004174,71386.0,71378.0,0.13898026]
[1773544893368,0.07004174,71386.0,71379.0,0.13898026]
[1773544893575,0.07004174,71386.0,71380.0,0.13898026]
[1773544893775,0.07004174,71386.0,71381.0,0.13898026]
[1773544893970,0.07004174,71386.0,71382.0,0.13898026]
[1773544894288,0.07004174,71386.0,71383.0,0.13898026]
[1773544894443,0.07004174,71386.0,71384.0,0.13898026]
[1773544894642,0.07004174,71386.0,71376.0,0.07025144]
[1773544894643,0.07104174,71386.0,71385.0,0.13898026]
[1773544895048,0.07004174,71386.0,71385.0,0.13898026]
[1773544895249,0.07104174,71386.0,71385.0,0.13898026]
[1773544896418,0.07004174,71386.0,71385.0,0.13898026]
[1773544896768,0.07104174,71386.0,71385.0,0.13898026]
[1773544901617,0.07104174,71386.0,71376.0,0.0002]
[1773544902175,0.07104174,71386.0,71382.0,0.0002]
[1773544902427,0.07126175,71386.0,71382.0,0.0002]
[1773544902805,0.07026175,71386.0,71382.0,0.0002]
[1773544903720,0.07126175,71386.0,71376.0,0.0002]
[1773544904501,0.07026175,71386.0,71376.0,0.0002]
[1773544905244,0.06735393,71385.0,71376.0,0.0002]
[1773544905727,0.07026175,71386.0,71376.0,0.0002]
[1773544907132,0.07126175,71386.0,71376.0,0.0002]
[1773544907282,0.07026175,71386.0,71376.0,0.0002]
[1773544907487,0.07126175,71386.0,71376.0,0.0002]
[1773544912309,0.07026175,71386.0,71376.0,0.0002]
[1773544912919,0.13764234,71386.0,71376.0,0.0002]
[1773544913739,0.13764234,71386.0,71377.0,0.13926165]
[1773544913941,0.13764234,71386.0,71378.0,0.13926165]
[1773544914242,0.13764234,71386.0,71379.0,0.13926165]
[1773544914439,0.13764234,71386.0,71380.0,0.13926165]
[1773544914739,0.13764234,71386.0,71381.0,0.13926165]
[1773544914942,0.13764234,71386.0,71376.0,0.0002]
[1773544917231,0.07026175,71386.0,71376.0,0.0002]
[1773544924757,0.12624074,71381.0,71371.0,0.0001676]
[1773544924942,0.0014,71380.0,71371.0,0.0001676]
[1773544927239,0.07004861,71379.0,71371.0,0.0001676]
[1773544928617,0.07104861,71379.0,71371.0,0.0001676]
[1773544928819,0.07004861,71379.0,71371.0,0.0001676]
[1773544929161,0.07104861,71379.0,71371.0,0.0001676]
[1773544929338,0.07104861,71379.0,71371.0,0.0003676]
[1773544929543,0.07004861,71379.0,71371.0,0.0003676]
[1773544929728,0.07104861,71379.0,71371.0,0.0003676]
[1773544929956,0.0014,71378.0,71371.0,0.06584022]
[1773544931457,0.07005057,71377.0,71371.0,0.06584022]
[1773544933036,0.07105057,71377.0,71371.0,0.06584022]
[1773544934022,0.07105057,71377.0,71371.0,0.06567262]
[1773544936966,0.07105057,71377.0,71371.0,0.0002]
[1773544937652,0.07005057,71377.0,71371.0,0.0002]
[1773544938062,0.07105057,71377.0,71371.0,0.0002]
[1773544938362,0.07005057,71377.0,71371.0,0.0002]
[1773544938540,0.07105057,71377.0,71371.0,0.0002]
[1773544938746,0.07005057,71377.0,71371.0,0.0002]
[1773544939151,0.07105057,71377.0,71371.0,0.0002]
[1773544939831,0.07105057,71377.0,71367.0,0.0002]
[1773544940437,0.07005057,71377.0,71367.0,0.0002]
[1773544947304,0.0014,71376.0,71367.0,0.0002]
[1773544947942,0.07005253,71375.0,71367.0,0.0002]
[1773544951115,0.06604139,71374.0,71363.0,0.0002]
[1773544951456,0.0588951,71373.0,71363.0,0.0002]
[1773544952597,0.0588951,71373.0,71361.0,0.0002]
[1773544952598,0.07005548,71372.0,71347.0,0.16610333]
[1773544952722,0.0588951,71365.0,71348.0,0.11179004]
[1773544952925,0.0588951,71360.0,71349.0,0.06393965]
[1773544954042,0.0014,71364.0,71349.0,0.06393965]
[1773544954656,0.07006431,71363.0,71354.0,0.000115]
[1773544954874,0.07006431,71363.0,71349.0,0.06393965]
[1773544955894,0.07006431,71363.0,71349.0,0.0001621]
[1773544956094,0.1361057,71363.0,71349.0,0.0001621]
[1773544957116,0.0588951,71360.0,71349.0,0.0003621]
[1773544959189,0.07006824,71359.0,71349.0,0.0003621]
[1773544959512,0.0014,71358.0,71349.0,0.0003621]
[1773544959872,0.0014,71358.0,71350.0,0.06377755]
[1773544960900,0.0014,71360.0,71351.0,0.06377755]
[1773544961100,0.0014,71365.0,71351.0,0.06377755]
[1773544961327,0.0014,71365.0,71353.0,0.06377755]
[1773544964009,0.07006333,71364.0,71354.0,0.06377755]
[1773544966307,0.07006333,71364.0,71355.0,0.06377755]
[1773544968936,0.07006333,71364.0,71355.0,0.06385787]
[1773544972571,0.07006333,71364.0,71355.0,8.032e-05]
[1773544972744,0.07006333,71364.0,71354.0,0.0002]
[1773544973034,0.07014364,71364.0,71354.0,0.0002]
[1773544977714,0.07014364,71364.0,71354.0,0.070273]
[1773544977986,0.07005685,71371.0,71355.0,0.06523047]
[1773544977987,0.0014,71371.0,71355.0,0.06523047]
[1773544978211,0.0014,71370.0,71355.0,0.06531078]
[1773544978483,0.07005273,71375.0,71355.0,0.06531078]
[1773544978647,0.0014,71374.0,71355.0,0.06531078]
[1773544979257,0.0014,71374.0,71357.0,0.06523047]
[1773544979258,0.0700545,71373.0,71357.0,0.06523047]
[1773544979685,0.00022001,71365.0,71357.0,0.06523047]
[1773544981220,0.00022001,71365.0,71358.0,0.07006922]
[1773544981401,0.00022001,71365.0,71359.0,0.06523047]
[1773544983704,0.00022001,71365.0,71360.0,0.07006726]
[1773544984513,0.00022001,71365.0,71360.0,0.13529773]
[1773544984722,0.00022001,71365.0,71360.0,0.07006726]
[1773544985699,0.00022001,71365.0,71360.0,0.13529773]
[1773544987944,0.00022001,71365.0,71356.0,0.07007119]
[1773544988145,0.0014,71367.0,71357.0,0.06523047]
[1773544991926,0.0014,71367.0,71358.0,0.07006922]
[1773544992064,0.0014,71367.0,71359.0,0.06523047]
[1773544994404,0.0014,71367.0,71360.0,0.07006726]
[1773544994604,0.0014,71367.0,71360.0,0.07038166]
[1773544994952,0.0014,71367.0,71360.0,0.13561213]
[1773544996269,0.00122179,71367.0,71360.0,0.13561213]
[1773544997045,0.00104355,71367.0,71360.0,0.13561213]
[1773544998169,0.00104355,71367.0,71359.0,0.03581286]
[1773544998370,0.00104355,71367.0,71360.0,0.07006726]
[1773544999713,0.06180124,71365.0,71355.0,0.07035232]
[1773545000237,0.07006137,71366.0,71355.0,0.07035232]
[1773545002750,0.13189985,71366.0,71355.0,0.07035232]
[1773545005128,0.13189985,71366.0,71355.0,0.00028031]
[1773545005354,0.13189985,71366.0,71351.0,0.18164361]
[1773545005355,0.06183848,71365.0,71351.0,0.07020419]
[1773545005555,6.028e-05,71365.0,71351.0,0.07020419]
[1773545007235,0.0014,71364.0,71354.0,0.06328779]
[1773545007415,0.0014,71364.0,71353.0,0.07007413]
[1773545007820,0.06183848,71363.0,71353.0,0.07007413]